[Event "*** SCC Grand Prix: Titled Tuesday Blitz"]
[Site "Chess.com"]
[Date "2020.06.09"]
[Round "4"]
[White "smshk35"]
[Black "Vision_64"]
[Result "1-0"]
[WhiteElo "2322"]
[BlackElo "2134"]
[TimeControl "180+1"]
[EndTime "9:35:55 PDT"]
[Termination "smshk35 won by checkmate"]

1. e4 {[%clk 0:03:00.9]} 1... c5 {[%clk 0:02:59.9]} 2. Nf3 {[%clk 0:03:00.8]}
2... Nc6 {[%clk 0:03:00.1]} 3. d4 {[%clk 0:03:00.8]} 3... cxd4 {[%clk 0:03:01]}
4. Nxd4 {[%clk 0:03:01.7]} 4... Nf6 {[%clk 0:03:01.4]} 5. Nc3 {[%clk 0:03:01.3]}
5... e5 {[%clk 0:03:02]} 6. Ndb5 {[%clk 0:03:00.4]} 6... d6 {[%clk 0:03:02.4]}
7. Bg5 {[%clk 0:02:58]} 7... a6 {[%clk 0:03:02.6]} 8. Na3 {[%clk 0:02:58.1]}
8... b5 {[%clk 0:03:02.7]} 9. Bxf6 {[%clk 0:02:57]} 9... gxf6 {[%clk 0:03:00.8]}
10. Nd5 {[%clk 0:02:57.2]} 10... f5 {[%clk 0:02:14.9]} 11. Bxb5 {[%clk
0:02:56.1]} 11... axb5 {[%clk 0:02:10.8]} 12. Nxb5 {[%clk 0:02:57]} 12... Ra4
{[%clk 0:02:09.2]} 13. Nbc7+ {[%clk 0:02:55.3]} 13... Kd7 {[%clk 0:02:07.1]} 14.
b4 {[%clk 0:02:52.3]} 14... Rxb4 {[%clk 0:01:49.1]} 15. O-O {[%clk 0:02:46.9]}
15... Rxe4 {[%clk 0:01:46.6]} 16. Qd3 {[%clk 0:02:43.5]} 16... Nd4 {[%clk
0:01:16.1]} 17. c3 {[%clk 0:02:31.6]} 17... Nc6 {[%clk 0:01:10.2]} 18. f3 {[%clk
0:02:19.1]} 18... Rh4 {[%clk 0:00:50.9]} 19. Qxf5# {[%clk 0:02:18]} 1-0

[Event "*** SCC Grand Prix: Titled Tuesday Blitz"]
[Site "Chess.com"]
[Date "2020.06.09"]
[Round "4"]
[White "CarlosAlbornoz"]
[Black "killer311"]
[Result "1-0"]
[WhiteElo "2708"]
[BlackElo "2380"]
[TimeControl "180+1"]
[EndTime "9:36:09 PDT"]
[Termination "CarlosAlbornoz won by resignation"]

1. e4 {[%clk 0:03:00.9]} 1... c6 {[%clk 0:02:59.7]} 2. d4 {[%clk 0:03:00.8]}
2... d5 {[%clk 0:03:00.3]} 3. e5 {[%clk 0:03:01.1]} 3... Bf5 {[%clk 0:02:59]} 4.
Nf3 {[%clk 0:03:01.4]} 4... e6 {[%clk 0:02:59.1]} 5. Be2 {[%clk 0:03:01.5]} 5...
c5 {[%clk 0:02:58.9]} 6. Be3 {[%clk 0:03:00.8]} 6... cxd4 {[%clk 0:02:57.6]} 7.
Nxd4 {[%clk 0:03:00.7]} 7... Ne7 {[%clk 0:02:58.1]} 8. c4 {[%clk 0:03:00.8]}
8... Nbc6 {[%clk 0:02:57.6]} 9. Nxc6 {[%clk 0:02:51.6]} 9... Nxc6 {[%clk
0:02:55.9]} 10. cxd5 {[%clk 0:02:51]} 10... Qxd5 {[%clk 0:02:54.8]} 11. Qxd5
{[%clk 0:02:50.7]} 11... exd5 {[%clk 0:02:55.7]} 12. O-O {[%clk 0:02:46.5]}
12... Be7 {[%clk 0:02:48.8]} 13. f4 {[%clk 0:02:44.9]} 13... O-O {[%clk
0:02:44.7]} 14. Nd2 {[%clk 0:02:44.8]} 14... d4 {[%clk 0:02:37.5]} 15. Bf2
{[%clk 0:02:44.5]} 15... Rfd8 {[%clk 0:02:35.7]} 16. a3 {[%clk 0:02:42.8]} 16...
d3 {[%clk 0:02:29.7]} 17. Bf3 {[%clk 0:02:42.7]} 17... Rac8 {[%clk 0:02:27.9]}
18. Rac1 {[%clk 0:02:39.6]} 18... g5 {[%clk 0:02:20.8]} 19. g4 {[%clk
0:02:36.5]} 19... Be6 {[%clk 0:02:19.3]} 20. Bxc6 {[%clk 0:02:34.9]} 20... Rxc6
{[%clk 0:02:15.1]} 21. Rxc6 {[%clk 0:02:32.7]} 21... bxc6 {[%clk 0:02:16]} 22.
f5 {[%clk 0:02:33.2]} 22... Bd5 {[%clk 0:02:12.5]} 23. Rc1 {[%clk 0:02:31.1]}
23... f6 {[%clk 0:02:10]} 24. e6 {[%clk 0:02:29.7]} 24... Bd6 {[%clk 0:02:09.6]}
25. Bg3 {[%clk 0:02:22.5]} 25... Bxg3 {[%clk 0:02:04.2]} 26. hxg3 {[%clk
0:02:23.4]} 26... Rb8 {[%clk 0:02:04.1]} 27. b3 {[%clk 0:02:17]} 27... Kf8
{[%clk 0:01:57.9]} 28. Kf2 {[%clk 0:02:16.7]} 28... Ke7 {[%clk 0:01:57.7]} 29.
Ke3 {[%clk 0:02:16.9]} 29... Bxb3 {[%clk 0:01:55.5]} 30. Rb1 {[%clk 0:02:14.4]}
30... c5 {[%clk 0:01:47.9]} 31. Rxb3 {[%clk 0:02:13.6]} 31... Rxb3 {[%clk
0:01:46.2]} 32. Nxb3 {[%clk 0:02:13.6]} 32... c4 {[%clk 0:01:47.1]} 33. Nd2
{[%clk 0:02:11.4]} 33... c3 {[%clk 0:01:46.1]} 34. Ne4 {[%clk 0:02:01.8]} 34...
d2 {[%clk 0:01:42.8]} 35. Ke2 {[%clk 0:02:00.7]} 35... c2 {[%clk 0:01:39.3]} 36.
Kxd2 {[%clk 0:02:00.6]} 1-0

[Event "*** SCC Grand Prix: Titled Tuesday Blitz"]
[Site "Chess.com"]
[Date "2020.06.09"]
[Round "4"]
[White "jacky72"]
[Black "bugsbunny444"]
[Result "0-1"]
[WhiteElo "2677"]
[BlackElo "2501"]
[TimeControl "180+1"]
[EndTime "9:36:21 PDT"]
[Termination "bugsbunny444 won by checkmate"]

1. d4 {[%clk 0:03:00.9]} 1... e6 {[%clk 0:02:57.4]} 2. Nf3 {[%clk 0:03:01.8]}
2... c5 {[%clk 0:02:57.2]} 3. c3 {[%clk 0:03:00.3]} 3... Nc6 {[%clk 0:02:56.1]}
4. g3 {[%clk 0:03:00.1]} 4... d5 {[%clk 0:02:54.1]} 5. Bg2 {[%clk 0:02:59.6]}
5... Nf6 {[%clk 0:02:54.5]} 6. O-O {[%clk 0:03:00.1]} 6... Bd6 {[%clk
0:02:54.2]} 7. dxc5 {[%clk 0:02:59.4]} 7... Bxc5 {[%clk 0:02:54.1]} 8. b4 {[%clk
0:03:00.3]} 8... Bb6 {[%clk 0:02:51.2]} 9. Bb2 {[%clk 0:03:01.2]} 9... O-O
{[%clk 0:02:51]} 10. Nbd2 {[%clk 0:03:01.7]} 10... Qe7 {[%clk 0:02:44.3]} 11. a3
{[%clk 0:03:01.7]} 11... e5 {[%clk 0:02:41.6]} 12. e3 {[%clk 0:03:02.2]} 12...
Bg4 {[%clk 0:02:37]} 13. h3 {[%clk 0:03:02.1]} 13... Bh5 {[%clk 0:02:37.3]} 14.
Qb3 {[%clk 0:03:00.6]} 14... Rad8 {[%clk 0:02:20.8]} 15. c4 {[%clk 0:02:59.6]}
15... e4 {[%clk 0:02:09.3]} 16. Nh4 {[%clk 0:02:55.7]} 16... d4 {[%clk
0:01:12.8]} 17. Nf5 {[%clk 0:02:52.8]} 17... Qe6 {[%clk 0:01:04.7]} 18. Nxd4
{[%clk 0:02:51.9]} 18... Nxd4 {[%clk 0:01:04.8]} 19. exd4 {[%clk 0:02:52.2]}
19... Bxd4 {[%clk 0:01:05.2]} 20. Rfe1 {[%clk 0:02:51.2]} 20... Bxf2+ {[%clk
0:01:00.9]} 21. Kxf2 {[%clk 0:02:52.1]} 21... Rxd2+ {[%clk 0:01:00.9]} 22. Kg1
{[%clk 0:02:52.3]} 22... Rc8 {[%clk 0:00:20.5]} 23. Bxf6 {[%clk 0:02:43]} 23...
Qxf6 {[%clk 0:00:20.5]} 24. Bxe4 {[%clk 0:02:43.6]} 24... Qf2+ {[%clk 0:00:20]}
25. Kh1 {[%clk 0:02:41.8]} 25... Qh2# {[%clk 0:00:20.9]} 0-1

[Event "*** SCC Grand Prix: Titled Tuesday Blitz"]
[Site "Chess.com"]
[Date "2020.06.09"]
[Round "4"]
[White "SirMittensofMittensville"]
[Black "FMalexhdez"]
[Result "1-0"]
[WhiteElo "2653"]
[BlackElo "2107"]
[TimeControl "180+1"]
[EndTime "9:36:30 PDT"]
[Termination "SirMittensofMittensville won by resignation"]

1. e4 {[%clk 0:03:00.9]} 1... c5 {[%clk 0:02:59.5]} 2. c3 {[%clk 0:03:01]} 2...
d6 {[%clk 0:02:53]} 3. d4 {[%clk 0:03:01.2]} 3... cxd4 {[%clk 0:02:52.9]} 4.
cxd4 {[%clk 0:03:02.1]} 4... Nf6 {[%clk 0:02:52.5]} 5. Nc3 {[%clk 0:03:02.6]}
5... g6 {[%clk 0:02:52.3]} 6. Nf3 {[%clk 0:03:02.8]} 6... Bg7 {[%clk 0:02:52.6]}
7. h3 {[%clk 0:03:03.6]} 7... O-O {[%clk 0:02:52.4]} 8. Be2 {[%clk 0:03:04.4]}
8... Nc6 {[%clk 0:02:50]} 9. O-O {[%clk 0:03:04.6]} 9... d5 {[%clk 0:02:49.5]}
10. e5 {[%clk 0:03:03.7]} 10... Ne4 {[%clk 0:02:49.6]} 11. Be3 {[%clk 0:03:03]}
11... Bf5 {[%clk 0:02:38.1]} 12. Rc1 {[%clk 0:03:02.3]} 12... Nxc3 {[%clk
0:02:36.6]} 13. Rxc3 {[%clk 0:03:02]} 13... h5 {[%clk 0:02:28.7]} 14. Qb3 {[%clk
0:03:01.2]} 14... Qd7 {[%clk 0:02:25]} 15. Rfc1 {[%clk 0:02:59.6]} 15... Rfc8
{[%clk 0:02:23.2]} 16. Rc5 {[%clk 0:02:59.1]} 16... e6 {[%clk 0:02:21.5]} 17.
Bb5 {[%clk 0:02:56.4]} 17... Bf8 {[%clk 0:02:11.1]} 18. R5c3 {[%clk 0:02:56.4]}
18... a6 {[%clk 0:01:58.9]} 19. Bxc6 {[%clk 0:02:52.6]} 19... bxc6 {[%clk
0:01:50.2]} 20. Qa4 {[%clk 0:02:51.2]} 20... Rab8 {[%clk 0:01:43.9]} 21. b3
{[%clk 0:02:50.4]} 21... Rb6 {[%clk 0:01:34]} 22. a3 {[%clk 0:02:43.6]} 22...
Qb7 {[%clk 0:01:29.7]} 23. b4 {[%clk 0:02:43.7]} 23... Be7 {[%clk 0:01:08.6]}
24. Nd2 {[%clk 0:02:43.6]} 24... a5 {[%clk 0:01:05.4]} 25. bxa5 {[%clk
0:02:34.9]} 25... Qa6 {[%clk 0:00:35.6]} 26. Nb3 {[%clk 0:02:31.5]} 26... Bd3
{[%clk 0:00:26.1]} 27. Rxd3 {[%clk 0:02:27.3]} 1-0

[Event "*** SCC Grand Prix: Titled Tuesday Blitz"]
[Site "Chess.com"]
[Date "2020.06.09"]
[Round "4"]
[White "Grieve72"]
[Black "tamarozi99"]
[Result "1-0"]
[WhiteElo "2402"]
[BlackElo "2041"]
[TimeControl "180+1"]
[EndTime "9:36:39 PDT"]
[Termination "Grieve72 won on time"]

1. e4 {[%clk 0:03:00.9]} 1... c5 {[%clk 0:02:59.6]} 2. Nf3 {[%clk 0:03:01.2]}
2... Nc6 {[%clk 0:02:59.3]} 3. d4 {[%clk 0:03:01.7]} 3... cxd4 {[%clk
0:03:00.2]} 4. Nxd4 {[%clk 0:03:02.5]} 4... g6 {[%clk 0:03:00.6]} 5. c4 {[%clk
0:03:02.5]} 5... d6 {[%clk 0:02:58.9]} 6. Nc3 {[%clk 0:02:58.7]} 6... Nf6 {[%clk
0:02:58.7]} 7. f3 {[%clk 0:02:58.1]} 7... Nxd4 {[%clk 0:02:55.7]} 8. Qxd4 {[%clk
0:02:59]} 8... Bg7 {[%clk 0:02:55.9]} 9. Be3 {[%clk 0:02:59.5]} 9... O-O {[%clk
0:02:55.5]} 10. Qd2 {[%clk 0:03:00.1]} 10... a5 {[%clk 0:02:51.1]} 11. Na4
{[%clk 0:02:59.6]} 11... Be6 {[%clk 0:02:22.5]} 12. Nb6 {[%clk 0:02:59.2]} 12...
Rb8 {[%clk 0:01:55.1]} 13. Qxa5 {[%clk 0:02:58.8]} 13... Nd7 {[%clk 0:01:44.6]}
14. Qb4 {[%clk 0:02:58.7]} 14... Nc5 {[%clk 0:01:31]} 15. O-O-O {[%clk
0:02:44.1]} 15... Qc7 {[%clk 0:00:51.6]} 16. Kb1 {[%clk 0:02:43.9]} 16... f5
{[%clk 0:00:48.2]} 17. Bd3 {[%clk 0:02:24.9]} 17... Nxd3 {[%clk 0:00:41.5]} 18.
Rxd3 {[%clk 0:02:25.8]} 1-0

[Event "*** SCC Grand Prix: Titled Tuesday Blitz"]
[Site "Chess.com"]
[Date "2020.06.09"]
[Round "4"]
[White "Firegrizzly"]
[Black "TrickyFortem"]
[Result "1-0"]
[WhiteElo "2586"]
[BlackElo "2374"]
[TimeControl "180+1"]
[EndTime "9:36:52 PDT"]
[Termination "Firegrizzly won by resignation"]

1. d4 {[%clk 0:03:00.9]} 1... Nf6 {[%clk 0:02:59.5]} 2. Nf3 {[%clk 0:03:01.8]}
2... g6 {[%clk 0:02:59.6]} 3. Bg5 {[%clk 0:03:00.6]} 3... Bg7 {[%clk 0:03:00]}
4. Nbd2 {[%clk 0:02:59.9]} 4... d5 {[%clk 0:02:57.5]} 5. e3 {[%clk 0:02:59.9]}
5... O-O {[%clk 0:02:57.5]} 6. Be2 {[%clk 0:02:58.5]} 6... c5 {[%clk 0:02:57.6]}
7. c3 {[%clk 0:02:58.5]} 7... b6 {[%clk 0:02:57.4]} 8. O-O {[%clk 0:02:58.5]}
8... Bb7 {[%clk 0:02:57.7]} 9. a4 {[%clk 0:02:59.1]} 9... Nbd7 {[%clk
0:02:52.8]} 10. h3 {[%clk 0:02:58.7]} 10... Re8 {[%clk 0:02:40.3]} 11. Qb3
{[%clk 0:02:52.5]} 11... Qc7 {[%clk 0:02:09.1]} 12. Bf4 {[%clk 0:02:48.7]} 12...
Qc8 {[%clk 0:02:09.2]} 13. a5 {[%clk 0:02:47.1]} 13... Ne4 {[%clk 0:01:55.8]}
14. Nxe4 {[%clk 0:02:45.3]} 14... dxe4 {[%clk 0:01:56.7]} 15. Ng5 {[%clk
0:02:45.1]} 15... e6 {[%clk 0:01:51.9]} 16. f3 {[%clk 0:02:24.5]} 16... exf3
{[%clk 0:01:47.9]} 17. Nxf3 {[%clk 0:02:23.8]} 17... Nf6 {[%clk 0:01:37.6]} 18.
Ne5 {[%clk 0:02:19.4]} 18... Nd5 {[%clk 0:01:34.7]} 19. a6 {[%clk 0:02:11.4]}
19... Nxf4 {[%clk 0:01:28.3]} 20. exf4 {[%clk 0:02:07.6]} 20... Bd5 {[%clk
0:01:25]} 21. c4 {[%clk 0:02:06.1]} 21... Be4 {[%clk 0:01:23.2]} 22. d5 {[%clk
0:02:01]} 22... exd5 {[%clk 0:01:01.9]} 23. cxd5 {[%clk 0:02:01.9]} 23... Qc7
{[%clk 0:01:01.8]} 24. d6 {[%clk 0:01:53.3]} 24... Qxd6 {[%clk 0:01:02]} 25.
Qxf7+ {[%clk 0:01:46.6]} 25... Kh8 {[%clk 0:01:01.9]} 26. Qxe8+ {[%clk
0:01:36.1]} 26... Rxe8 {[%clk 0:01:00.1]} 27. Nf7+ {[%clk 0:01:36.6]} 27... Kg8
{[%clk 0:00:59.3]} 28. Nxd6 {[%clk 0:01:37.5]} 1-0

[Event "*** SCC Grand Prix: Titled Tuesday Blitz"]
[Site "Chess.com"]
[Date "2020.06.09"]
[Round "4"]
[White "GuuBol"]
[Black "Arjun2002"]
[Result "0-1"]
[WhiteElo "2224"]
[BlackElo "2643"]
[TimeControl "180+1"]
[EndTime "9:36:54 PDT"]
[Termination "Arjun2002 won by resignation"]

1. e4 {[%clk 0:03:00.9]} 1... c5 {[%clk 0:02:59.5]} 2. d4 {[%clk 0:03:00.8]}
2... cxd4 {[%clk 0:02:58.8]} 3. c3 {[%clk 0:03:01.2]} 3... dxc3 {[%clk
0:02:58.1]} 4. Nxc3 {[%clk 0:03:02.1]} 4... Nc6 {[%clk 0:02:53.6]} 5. Nf3 {[%clk
0:03:01.9]} 5... d6 {[%clk 0:02:50.5]} 6. Bc4 {[%clk 0:03:00.1]} 6... a6 {[%clk
0:02:50.5]} 7. O-O {[%clk 0:02:58.9]} 7... Nf6 {[%clk 0:02:50.6]} 8. Bf4 {[%clk
0:02:54.7]} 8... Bg4 {[%clk 0:02:44.2]} 9. h3 {[%clk 0:02:52.6]} 9... Bxf3
{[%clk 0:02:44.2]} 10. Qxf3 {[%clk 0:02:47.6]} 10... e6 {[%clk 0:02:44.2]} 11.
Rfd1 {[%clk 0:02:46.3]} 11... Qb6 {[%clk 0:02:15.2]} 12. Rd2 {[%clk 0:01:45.8]}
12... Be7 {[%clk 0:02:02.9]} 13. Rad1 {[%clk 0:01:43.3]} 13... O-O {[%clk
0:02:01.5]} 14. a3 {[%clk 0:01:40.8]} 14... Rfd8 {[%clk 0:01:56.3]} 15. b4
{[%clk 0:01:39.9]} 15... Ne5 {[%clk 0:01:55.2]} 16. Bxe5 {[%clk 0:01:35.6]}
16... dxe5 {[%clk 0:01:56.1]} 17. Bb3 {[%clk 0:01:16.5]} 17... Rac8 {[%clk
0:01:47.9]} 18. Rxd8+ {[%clk 0:01:11.8]} 18... Rxd8 {[%clk 0:01:47.7]} 19. Rxd8+
{[%clk 0:01:08.2]} 19... Qxd8 {[%clk 0:01:47.1]} 20. Qe3 {[%clk 0:01:07.6]}
20... Qd4 {[%clk 0:01:45.6]} 21. Qe1 {[%clk 0:00:54.1]} 21... g6 {[%clk
0:01:41.7]} 22. Na4 {[%clk 0:00:53.5]} 22... Qxe4 {[%clk 0:01:39]} 23. Qxe4
{[%clk 0:00:50.3]} 23... Nxe4 {[%clk 0:01:38.5]} 24. Kf1 {[%clk 0:00:50.7]}
24... Nd2+ {[%clk 0:01:38.2]} 0-1

[Event "*** SCC Grand Prix: Titled Tuesday Blitz"]
[Site "Chess.com"]
[Date "2020.06.09"]
[Round "4"]
[White "Skatchkov_V"]
[Black "Lovinski"]
[Result "1-0"]
[WhiteElo "2548"]
[BlackElo "2355"]
[TimeControl "180+1"]
[EndTime "9:36:58 PDT"]
[Termination "Skatchkov_V won by resignation"]

1. d4 {[%clk 0:03:00.8]} 1... d5 {[%clk 0:02:59.9]} 2. Nf3 {[%clk 0:03:01]} 2...
e6 {[%clk 0:02:59.9]} 3. c4 {[%clk 0:03:01.2]} 3... a6 {[%clk 0:02:59.2]} 4.
cxd5 {[%clk 0:03:00.2]} 4... exd5 {[%clk 0:02:59.2]} 5. Nc3 {[%clk 0:03:00.9]}
5... Nf6 {[%clk 0:02:59.6]} 6. Bg5 {[%clk 0:03:01.3]} 6... Be6 {[%clk
0:02:59.2]} 7. e3 {[%clk 0:03:02]} 7... Nbd7 {[%clk 0:02:59.5]} 8. Bd3 {[%clk
0:03:02.5]} 8... Bd6 {[%clk 0:03:00]} 9. O-O {[%clk 0:03:01.5]} 9... O-O {[%clk
0:02:59.8]} 10. Qc2 {[%clk 0:03:02.1]} 10... h6 {[%clk 0:02:59.7]} 11. Bf4
{[%clk 0:03:02.7]} 11... Qe7 {[%clk 0:02:42]} 12. Rae1 {[%clk 0:02:56.1]} 12...
Bg4 {[%clk 0:02:35.2]} 13. Nd2 {[%clk 0:02:17.9]} 13... c5 {[%clk 0:01:45.3]}
14. Bxd6 {[%clk 0:01:56.8]} 14... Qxd6 {[%clk 0:01:45]} 15. dxc5 {[%clk
0:01:57.2]} 15... Nxc5 {[%clk 0:01:43.8]} 16. Bf5 {[%clk 0:01:57.9]} 16... Bxf5
{[%clk 0:01:27.4]} 17. Qxf5 {[%clk 0:01:57.4]} 17... d4 {[%clk 0:01:28.3]} 18.
exd4 {[%clk 0:01:54.3]} 18... Qxd4 {[%clk 0:01:29.2]} 19. Nf3 {[%clk 0:01:53.7]}
19... Qb4 {[%clk 0:01:18.7]} 20. a3 {[%clk 0:01:41.7]} 20... Qxb2 {[%clk
0:01:18.8]} 21. Qxc5 {[%clk 0:01:41.4]} 21... Rac8 {[%clk 0:01:18.9]} 22. Na4
{[%clk 0:01:41.3]} 22... Qb3 {[%clk 0:00:58.4]} 23. Qb4 {[%clk 0:01:38.2]} 1-0

[Event "*** SCC Grand Prix: Titled Tuesday Blitz"]
[Site "Chess.com"]
[Date "2020.06.09"]
[Round "4"]
[White "Andreikka"]
[Black "PavelShkapenko"]
[Result "1-0"]
[WhiteElo "2905"]
[BlackElo "2676"]
[TimeControl "180+1"]
[EndTime "9:37:01 PDT"]
[Termination "Andreikka won by resignation"]

1. c4 {[%clk 0:03:00.9]} 1... Nf6 {[%clk 0:02:59.5]} 2. Nc3 {[%clk 0:02:59.4]}
2... e6 {[%clk 0:02:59.6]} 3. e4 {[%clk 0:02:58.6]} 3... c5 {[%clk 0:02:59.8]}
4. e5 {[%clk 0:02:58.3]} 4... Ng8 {[%clk 0:03:00.4]} 5. d4 {[%clk 0:02:57.9]}
5... cxd4 {[%clk 0:02:58.8]} 6. Qxd4 {[%clk 0:02:57.7]} 6... Nc6 {[%clk
0:02:58.3]} 7. Qf4 {[%clk 0:02:48.9]} 7... d6 {[%clk 0:02:33]} 8. Nf3 {[%clk
0:02:48.7]} 8... Nge7 {[%clk 0:02:33.2]} 9. exd6 {[%clk 0:02:45.7]} 9... Ng6
{[%clk 0:02:32.8]} 10. Qe4 {[%clk 0:02:45.8]} 10... Bxd6 {[%clk 0:02:31.5]} 11.
Bd2 {[%clk 0:02:40]} 11... f5 {[%clk 0:02:16.9]} 12. Qc2 {[%clk 0:02:38.9]}
12... e5 {[%clk 0:02:15.6]} 13. O-O-O {[%clk 0:02:38.2]} 13... e4 {[%clk
0:02:14.6]} 14. Bg5 {[%clk 0:02:38.6]} 14... Qd7 {[%clk 0:01:39.2]} 15. Nb5
{[%clk 0:02:32.7]} 15... Bb8 {[%clk 0:01:28.8]} 16. Rxd7 {[%clk 0:02:30.2]}
16... Bxd7 {[%clk 0:01:29.3]} 17. Nfd4 {[%clk 0:02:29.3]} 17... O-O {[%clk
0:01:28.1]} 18. Be2 {[%clk 0:02:19.3]} 18... Be5 {[%clk 0:01:28.1]} 19. Nxc6
{[%clk 0:02:11.4]} 19... Bxc6 {[%clk 0:01:27.9]} 20. Rd1 {[%clk 0:01:58.1]}
20... Bxb5 {[%clk 0:01:16.9]} 21. cxb5 {[%clk 0:01:57.8]} 21... Rac8 {[%clk
0:01:17.5]} 22. Bc4+ {[%clk 0:01:58]} 22... Kh8 {[%clk 0:01:18.1]} 23. g3 {[%clk
0:01:50.8]} 23... h6 {[%clk 0:01:17.3]} 24. Be3 {[%clk 0:01:46.8]} 24... Bf6
{[%clk 0:01:17.2]} 25. Kb1 {[%clk 0:01:44.7]} 25... Ne5 {[%clk 0:01:17]} 26. b3
{[%clk 0:01:45.3]} 26... b6 {[%clk 0:01:14.2]} 27. a4 {[%clk 0:01:44.4]} 27...
Rc7 {[%clk 0:01:14.2]} 28. Bf4 {[%clk 0:01:34.6]} 28... Rfc8 {[%clk 0:01:13.5]}
29. Bxe5 {[%clk 0:01:33.9]} 29... Bxe5 {[%clk 0:01:14.1]} 30. Rd5 {[%clk
0:01:33.6]} 30... Re7 {[%clk 0:01:14.3]} 31. Qd1 {[%clk 0:01:33.5]} 31... Rf8
{[%clk 0:01:14]} 32. Rd7 {[%clk 0:01:33.3]} 32... Rxd7 {[%clk 0:01:11.8]} 33.
Qxd7 {[%clk 0:01:33.4]} 33... f4 {[%clk 0:01:10.4]} 34. Qe7 {[%clk 0:01:33]} 1-0

[Event "*** SCC Grand Prix: Titled Tuesday Blitz"]
[Site "Chess.com"]
[Date "2020.06.09"]
[Round "4"]
[White "queen_iryna"]
[Black "MichailovM"]
[Result "1-0"]
[WhiteElo "2329"]
[BlackElo "2454"]
[TimeControl "180+1"]
[EndTime "9:37:05 PDT"]
[Termination "queen_iryna won by resignation"]

1. d4 {[%clk 0:03:00.9]} 1... Nf6 {[%clk 0:02:58.8]} 2. Bg5 {[%clk 0:02:59.6]}
2... d5 {[%clk 0:02:58.3]} 3. Nf3 {[%clk 0:02:51.6]} 3... e6 {[%clk 0:02:53.8]}
4. c4 {[%clk 0:02:49.5]} 4... Nbd7 {[%clk 0:02:49.5]} 5. Nc3 {[%clk 0:02:47.8]}
5... Be7 {[%clk 0:02:47.1]} 6. e3 {[%clk 0:02:47.7]} 6... O-O {[%clk 0:02:47.1]}
7. Bd3 {[%clk 0:02:42.9]} 7... b6 {[%clk 0:02:47.2]} 8. cxd5 {[%clk 0:02:42]}
8... Nxd5 {[%clk 0:02:43.2]} 9. Bxe7 {[%clk 0:02:41.8]} 9... Qxe7 {[%clk
0:02:44.1]} 10. O-O {[%clk 0:02:40.9]} 10... c5 {[%clk 0:02:40.8]} 11. Rc1
{[%clk 0:02:31.5]} 11... Bb7 {[%clk 0:02:37.7]} 12. Bb1 {[%clk 0:02:28.5]} 12...
Rac8 {[%clk 0:02:34.1]} 13. Nxd5 {[%clk 0:02:25.6]} 13... exd5 {[%clk
0:02:33.7]} 14. Qd3 {[%clk 0:02:20.6]} 14... g6 {[%clk 0:02:33.7]} 15. Rfd1
{[%clk 0:02:08.1]} 15... Rfe8 {[%clk 0:02:33.4]} 16. a3 {[%clk 0:01:56]} 16...
Nf8 {[%clk 0:02:20.3]} 17. Ne5 {[%clk 0:01:39.9]} 17... Ne6 {[%clk 0:02:17.6]}
18. Nf3 {[%clk 0:01:08.6]} 18... c4 {[%clk 0:01:57.8]} 19. Qc2 {[%clk
0:01:04.2]} 19... b5 {[%clk 0:01:57.3]} 20. Ne5 {[%clk 0:01:02.5]} 20... f6
{[%clk 0:01:52.5]} 21. Ng4 {[%clk 0:00:51.7]} 21... Kg7 {[%clk 0:01:52.2]} 22.
h4 {[%clk 0:00:37.9]} 22... h5 {[%clk 0:01:50.6]} 23. Qxg6+ {[%clk 0:00:35.5]}
23... Kf8 {[%clk 0:01:44.8]} 24. Nxf6 {[%clk 0:00:33.6]} 1-0

[Event "*** SCC Grand Prix: Titled Tuesday Blitz"]
[Site "Chess.com"]
[Date "2020.06.09"]
[Round "4"]
[White "Fandorine"]
[Black "ftorodent"]
[Result "1-0"]
[WhiteElo "2897"]
[BlackElo "2663"]
[TimeControl "180+1"]
[EndTime "9:37:20 PDT"]
[Termination "Fandorine won by resignation"]

1. e4 {[%clk 0:03:00.9]} 1... e6 {[%clk 0:02:59.6]} 2. d4 {[%clk 0:03:01.2]}
2... d5 {[%clk 0:02:59.5]} 3. Nc3 {[%clk 0:03:01.9]} 3... Nf6 {[%clk 0:02:59]}
4. Bg5 {[%clk 0:02:58.9]} 4... dxe4 {[%clk 0:02:58.3]} 5. Nxe4 {[%clk
0:02:59.8]} 5... Nbd7 {[%clk 0:02:58.5]} 6. Nf3 {[%clk 0:02:58.4]} 6... h6
{[%clk 0:02:58.6]} 7. Nxf6+ {[%clk 0:02:57]} 7... Nxf6 {[%clk 0:02:58.7]} 8.
Bxf6 {[%clk 0:02:44.7]} 8... Qxf6 {[%clk 0:02:55.7]} 9. Bb5+ {[%clk 0:02:45.2]}
9... c6 {[%clk 0:02:54.9]} 10. Bd3 {[%clk 0:02:44.5]} 10... Bd6 {[%clk
0:02:49.9]} 11. Qe2 {[%clk 0:02:41.6]} 11... Bd7 {[%clk 0:02:48.9]} 12. O-O
{[%clk 0:02:39.8]} 12... O-O {[%clk 0:02:30.6]} 13. Rad1 {[%clk 0:02:36.9]}
13... Rfd8 {[%clk 0:02:24.1]} 14. Ne5 {[%clk 0:02:27.3]} 14... c5 {[%clk
0:02:16.1]} 15. Nxd7 {[%clk 0:02:23.8]} 15... Rxd7 {[%clk 0:02:10.2]} 16. dxc5
{[%clk 0:02:24.1]} 16... Bxc5 {[%clk 0:01:33.8]} 17. Bh7+ {[%clk 0:02:22.4]}
17... Kxh7 {[%clk 0:01:33.6]} 18. Qe4+ {[%clk 0:02:09.2]} 18... g6 {[%clk
0:01:21.5]} 19. Rxd7 {[%clk 0:02:08.8]} 19... Kg7 {[%clk 0:01:21]} 20. Qxb7
{[%clk 0:01:59.4]} 20... Rf8 {[%clk 0:01:20.4]} 21. c3 {[%clk 0:01:54]} 21...
Qf5 {[%clk 0:01:13.7]} 22. Rd2 {[%clk 0:01:39.2]} 22... Qf4 {[%clk 0:01:09]} 23.
Rfd1 {[%clk 0:01:25.7]} 23... Rb8 {[%clk 0:01:03.7]} 24. Qf3 {[%clk 0:01:24.7]}
1-0